bitfinex/quotes_SOLUSD_20250811
["timestamp","ask_amount","ask_price","bid_price","bid_amount"]
[1754924070277,0.66,179.03,179.02,0.06]
[1754924070476,6.62224406,179.03,179.02,0.06]
[1754924071583,12.20790009,179.03,179.02,0.06]
[1754924071985,15.91502084,179.03,179.02,0.06]
[1754924072190,19.49287843,179.03,179.02,0.06]
[1754924073279,34.599094,179.03,179.02,0.06]
[1754924074099,155.10621557,179.02,179.0,0.06]
[1754924074303,24.64631722,179.01,178.98,0.06]
[1754924074615,15.10621557,178.98,178.96,0.06]
[1754924074801,44.54591433,179.0,178.96,0.06]
[1754924074802,3.70591433,178.97,178.96,0.06]
[1754924074986,10.20010165,178.97,178.96,0.06]
[1754924075312,0.66,178.97,178.96,0.06]
[1754924075614,55.94621557,178.99,178.96,0.06]
[1754924075615,40.84,178.99,178.96,0.06]
[1754924075796,5.58721644,178.98,178.96,0.06]
[1754924076575,5.58698845,178.99,178.97,9.54010165]
[1754924076997,6.24698845,178.99,178.96,9.60010165]
[1754924077377,5.58698845,178.99,178.96,9.60010165]
[1754924077682,140.0,178.98,178.96,9.60010165]
[1754924077896,146.24724388,178.98,178.96,0.06]
[1754924078085,25.30631722,178.97,178.96,0.06]
[1754924079100,15.10621557,178.96,178.95,0.06]
[1754924079305,15.10621557,178.96,178.93,0.06]
[1754924079306,25.30631722,178.96,178.93,0.06]
[1754924079485,15.10621557,178.94,178.93,0.06]
[1754924079684,24.64631722,178.94,178.93,0.06]
[1754924079876,30.89478262,178.94,178.93,0.06]
[1754924080777,60.89478262,178.94,178.93,0.06]
[1754924081306,101.73478262,178.94,178.93,0.06]
[1754924081796,45.78856705,178.94,178.93,0.06]
[1754924082098,45.12856705,178.94,178.93,0.06]
[1754924082279,15.12856705,178.94,178.93,0.06]
[1754924082695,5.5884654,178.94,178.93,0.06]
[1754924082936,5.58820531,178.95,178.93,9.60010165]
[1754924083084,169.20814277,178.98,178.94,9.54010165]
[1754924083085,15.10621557,178.98,178.94,9.54010165]
[1754924083282,21.35343201,178.98,178.94,9.54010165]
[1754924083685,5.58721644,178.98,178.97,9.54010165]
[1754924083994,35.58721644,178.98,178.94,0.42]
[1754924084209,30.0,178.98,178.97,9.54010165]
[1754924084583,5.58629945,179.01,178.97,9.96010165]
[1754924084783,5.58601832,179.02,179.0,9.54010165]
[1754924084982,5.58601832,179.02,179.01,9.54010165]
[1754924085416,5.58565603,179.03,179.01,9.54010165]
[1754924085599,5.58565603,179.03,179.02,9.54010165]
[1754924085800,30.0,179.03,179.02,9.54010165]
[1754924086022,5.58507174,179.05,179.02,9.54010165]
[1754924086313,5.58507174,179.05,179.03,9.54010165]
[1754924086705,5.58507174,179.05,179.02,9.54010165]
[1754924086706,30.0,179.04,179.02,9.54010165]
[1754924087025,5.5847202,179.06,179.03,9.54010165]
[1754924087223,140.0,179.05,179.0,26.0]
[1754924087523,0.66,179.04,179.0,35.54010165]
[1754924088011,19.54652071,179.06,179.01,9.54010165]
[1754924088333,29.08662236,179.06,179.01,9.54010165]
[1754924088511,0.66,179.05,179.01,9.54010165]
[1754924088831,5.5847202,179.06,179.01,0.42]
[1754924089133,5.58534405,179.04,179.01,9.54010165]
[1754924089817,5.58534405,179.04,179.0,26.0]
[1754924090012,5.58534405,179.04,179.01,9.54010165]
[1754924090628,140.0,179.03,179.01,9.54010165]
[1754924092309,140.0,179.03,179.0,26.0]
[1754924092310,140.0,179.03,179.02,9.54010165]
[1754924092510,140.0,179.03,179.01,9.54010165]
[1754924092829,140.0,179.03,179.02,9.54010165]
[1754924095719,140.0,179.03,179.02,9.96010165]
[1754924095917,0.03,179.06,179.02,15.54606969]
[1754924096119,0.03,179.06,179.05,9.54010165]
[1754924098220,0.03,179.06,179.05,9.96010165]
[1754924098534,0.03,179.06,179.05,15.54513376]
[1754924099718,0.03,179.06,179.0,15.10621557]
[1754924099719,0.03,179.06,179.04,9.54010165]
[1754924100021,0.03,179.06,179.05,9.54010165]
[1754924101333,0.72,179.06,179.05,9.54010165]
[1754924101533,0.03,179.06,179.05,9.54010165]
[1754924102034,0.72,179.06,179.03,66.78]
[1754924102246,140.0,179.05,179.03,66.78]
[1754924102627,140.0,179.05,179.03,72.78558331]
[1754924102946,140.0,179.05,179.03,66.78]
[1754924103421,140.0,179.05,179.04,9.54010165]
[1754924103941,140.69,179.05,179.03,76.32010165]
[1754924104127,146.27507689,179.05,179.03,66.78]
[1754924104332,0.69,179.04,179.03,66.78]
[1754924104526,0.69,179.04,179.03,72.73832547]
[1754924104920,0.69,179.04,178.97,6.00728084]
[1754924105122,0.69,179.04,179.0,5.95832547]
[1754924105824,0.69,179.03,179.0,5.95832547]
[1754924107555,0.69,179.01,179.0,26.0]
[1754924107846,6.27628009,179.01,179.0,26.0]
[1754924108227,0.69,179.01,179.0,26.0]
[1754924109226,6.27628009,179.01,179.0,26.0]
[1754924109741,0.69,179.01,179.0,26.0]
[1754924110126,6.27628009,179.01,179.0,26.0]
[1754924110324,6.27628009,179.01,178.97,35.53592963]
[1754924110524,6.27628009,179.01,178.98,9.53592963]
[1754924110525,140.0,179.0,178.98,9.53592963]
[1754924110972,140.69,179.0,178.98,9.53592963]
[1754924111327,140.0,179.0,178.99,26.0]
[1754924111947,140.69,179.0,178.99,26.0]
[1754924112236,146.27659217,179.0,178.99,26.0]
[1754924112643,146.27659217,179.0,178.98,40.76]
[1754924112858,145.58659217,179.0,178.98,50.29592963]
[1754924113052,0.69,178.99,178.98,40.76]
[1754924113242,145.58659217,179.0,178.98,40.76]
[1754924113750,0.69,178.99,178.97,50.29592963]
[1754924114457,6.27693449,178.99,178.97,50.29592963]
[1754924114834,0.69,178.99,178.97,50.29592963]
[1754924115444,145.58667344,179.0,178.97,50.29592963]
[1754924115644,140.0,179.0,178.99,9.53592963]
[1754924117253,0.69,179.05,178.99,9.95592963]
[1754924117452,4.41143483,179.05,179.03,9.53592963]
[1754924117650,3.72143483,179.05,179.02,9.53592963]
[1754924117853,0.69,179.04,179.02,9.53592963]
[1754924118044,10.22592963,179.03,179.0,40.74]
[1754924118251,10.22592963,179.02,178.99,40.74]
[1754924118455,0.69,179.01,178.97,40.74]
[1754924118752,0.69,179.01,178.97,50.27592963]
[1754924119058,0.69,179.0,178.97,50.27592963]
[1754924119262,13.25617522,179.03,178.98,9.53592963]
[1754924119563,0.69,179.02,178.97,40.74]
[1754924119737,3.72029089,179.03,178.98,9.53592963]
[1754924120056,5.58554825,179.04,179.01,9.53592963]
[1754924120258,140.0,179.02,179.01,9.53592963]
[1754924120474,140.0,179.02,179.0,50.27592963]
[1754924120643,140.69,179.02,179.0,50.27592963]
[1754924120849,140.0,179.02,179.0,40.74]
[1754924121049,0.69,179.01,179.0,40.74]
[1754924121433,140.0,179.02,179.0,50.27592963]
[1754924122665,146.27599914,179.02,179.0,40.74]
[1754924123142,0.69,179.01,179.0,40.74]
[1754924123833,145.58599914,179.02,179.0,40.74]
[1754924124037,0.69,179.01,179.0,40.74]
[1754924124270,6.27628009,179.01,179.0,40.74]
[1754924126362,145.58602774,179.02,179.0,40.74]
[1754924126988,146.27602774,179.02,179.0,40.74]
[1754924127179,146.27602774,179.02,179.0,46.70138191]
[1754924127568,146.27602774,179.02,179.0,40.74]
[1754924128090,140.0,179.02,179.0,40.74]
[1754924128292,140.0,179.02,179.01,5.96138191]
[1754924128596,140.0,179.02,179.01,6.38138191]
[1754924128790,140.0,179.02,179.01,11.967662]
[1754924129167,140.0,179.02,179.01,0.42]
[1754924129377,140.0,179.02,179.01,5.96138191]
[1754924131772,140.0,179.02,179.0,40.74]
[1754924132097,140.0,179.02,179.01,5.96138191]
[1754924132294,0.67,179.04,179.0,40.74]
[1754924132597,3.73869705,179.03,179.02,5.96138191]
[1754924132801,3.73869705,179.03,179.02,46.66138191]
[1754924134711,4.40869705,179.03,179.0,5.96138191]
[1754924135003,3.73869705,179.02,179.01,40.7]
[1754924135301,3.76869705,179.02,179.01,40.7]
[1754924136286,4.43869705,179.02,179.01,40.7]
[1754924136901,15.986047,179.02,178.98,26.0]
[1754924137197,4.41206446,179.01,178.99,46.66138191]
[1754924137401,0.67,179.0,178.99,46.66138191]
[1754924137796,0.67,179.0,178.99,40.7]
[1754924138092,0.67,179.0,178.99,46.66138191]
[1754924138402,3.74200183,179.01,178.99,46.66138191]
[1754924138592,9.99837135,179.01,178.99,46.66138191]
[1754924138798,0.67,179.0,178.99,40.7]
[1754924138970,4.41200183,179.0,178.99,40.7]
[1754924140400,15.95997591,179.0,178.95,0.06]
[1754924140605,5.96138191,178.96,178.95,0.06]
[1754924140803,9.70338374,178.96,178.95,0.06]
[1754924141108,10.37338374,178.96,178.95,0.06]
[1754924141984,15.96122459,178.96,178.95,0.06]
[1754924142199,31.06744016,178.96,178.95,0.06]
[1754924142392,71.74744016,178.96,178.95,0.06]
[1754924144797,101.74744016,178.96,178.95,0.06]
[1754924145197,95.78605825,178.96,178.95,0.06]
[1754924145518,39.32984268,178.96,178.95,0.06]
[1754924145705,33.74200183,178.96,178.95,6.02138191]
[1754924146006,30.0,178.96,178.95,6.44138191]
[1754924146309,30.0,178.96,178.95,0.06]
[1754924146507,6.63138191,178.96,178.95,0.06]
[1754924146682,10.36348957,178.96,178.95,0.06]
[1754924147698,25.46970514,178.96,178.95,0.06]
[1754924148509,71.73754599,178.96,178.95,0.06]
[1754924149617,71.73754599,178.96,178.93,0.06]
[1754924149797,15.10621557,178.94,178.93,0.06]
[1754924150000,65.47970514,178.94,178.93,0.06]
[1754924150186,66.14970514,178.94,178.93,0.06]
[1754924150390,71.73817054,178.94,178.93,0.06]
[1754924150709,101.73817054,178.94,178.93,0.06]
[1754924156408,101.71817054,178.94,178.93,0.06]
[1754924158921,101.70817054,178.94,178.93,0.06]
[1754924159533,39.32057306,178.94,178.93,0.06]
[1754924159704,5.5884654,178.94,178.93,0.06]
[1754924160597,151.28822484,178.95,178.93,0.06]
[1754924160917,5.61789572,178.96,178.93,6.44138191]
[1754924161117,0.03,178.96,178.95,5.96138191]
[1754924161330,0.03,178.96,178.95,6.38138191]
[1754924161935,0.03,178.96,178.94,5.96138191]
[1754924162148,0.03,178.96,178.95,5.96138191]
[1754924162324,0.03,178.96,178.95,6.38138191]
[1754924162837,0.03,178.96,178.95,11.96953502]
[1754924165069,0.03,178.96,178.95,0.42]
[1754924165362,0.03,178.96,178.95,31.96138191]
[1754924166068,6.65138191,178.96,178.93,0.06]
[1754924166351,5.96138191,178.94,178.93,0.06]
[1754924166652,6.62138191,178.95,178.93,0.06]
[1754924166856,5.5884654,178.94,178.93,0.06]
[1754924167054,6.24819984,178.95,178.93,0.06]
[1754924167359,5.58819984,178.95,178.93,0.06]
[1754924168160,0.66,178.94,178.93,0.06]
[1754924168326,5.58819984,178.95,178.93,0.06]
[1754924168526,6.24819984,178.95,178.93,0.06]
[1754924169342,15.79517088,178.95,178.93,0.06]
[1754924169548,9.54697104,178.96,178.93,0.06]
[1754924170138,9.54697104,178.95,178.93,0.06]
[1754924171160,15.13501973,178.96,178.93,0.06]
[1754924171557,5.58804869,178.96,178.93,0.06]
[1754924171766,5.58758799,178.97,178.94,0.68]
[1754924171969,0.03,178.98,178.96,9.54697104]
[1754924172264,0.03,178.98,178.95,26.0]
[1754924172571,9.54697104,178.96,178.93,0.06]
[1754924172743,9.54697104,178.95,178.93,0.06]
[1754924173075,10.20697104,178.95,178.93,0.06]
[1754924173264,0.66,178.95,178.93,0.06]
[1754924173468,10.20697104,178.94,178.93,0.06]
[1754924174464,9.54697104,178.95,178.93,0.06]
[1754924174672,0.66,178.94,178.93,0.06]
[1754924175057,9.54697104,178.97,178.93,0.06]
[1754924175251,9.54697104,178.96,178.93,0.06]
[1754924175449,10.20697104,178.96,178.93,0.06]
[1754924175652,5.58752863,178.97,178.93,9.60697104]
[1754924175974,15.82428244,178.98,178.93,10.28697104]
[1754924176268,3.73351788,178.97,178.93,10.28697104]
[1754924176446,4.39351788,178.97,178.93,10.28697104]
[1754924176774,0.03,178.98,178.94,10.22697104]
[1754924176971,3.76452163,178.98,178.95,9.54697104]
[1754924177158,0.03,178.98,178.95,10.22697104]
[1754924177756,6.27726084,178.98,178.94,9.54697104]
[1754924177954,0.66,178.97,178.94,9.54697104]
[1754924178152,0.66,178.97,178.93,0.06]
[1754924178450,0.66,178.96,178.93,9.60697104]
[1754924178768,0.66,178.95,178.93,0.06]
[1754924179150,6.24818966,178.95,178.93,0.06]
[1754924179348,10.20697104,178.94,178.93,0.06]
[1754924179572,0.66,178.94,178.93,0.06]
[1754924179876,9.32951419,178.97,178.93,9.60697104]
[1754924180074,3.74192653,178.96,178.93,0.06]
[1754924180375,4.40192653,178.96,178.93,0.06]
[1754924180608,0.66,178.95,178.93,0.06]
[1754924180965,3.74192653,178.95,178.93,0.06]
[1754924181165,0.66,178.94,178.93,0.06]
[1754924181352,3.74192653,178.95,178.93,0.06]
[1754924182064,0.66,178.96,178.93,0.06]
[1754924182065,4.40192653,178.96,178.93,0.06]
[1754924182372,3.74192653,178.95,178.93,9.60697104]
[1754924182559,3.74192653,178.96,178.93,9.60697104]
[1754924183065,3.74192653,178.95,178.93,9.60697104]
[1754924183259,3.74192653,178.96,178.93,9.60697104]
[1754924183475,3.74192653,178.95,178.94,0.68]
[1754924183682,3.74192653,178.97,178.94,10.22697104]
[1754924183860,3.74192653,178.96,178.95,0.68]
[1754924184064,3.74192653,178.97,178.95,10.22697104]
[1754924184276,3.74192653,178.96,178.95,0.68]
[1754924184676,3.74192653,178.97,178.95,0.68]
[1754924185271,3.748191,178.97,178.95,0.68]
[1754924185458,3.748191,178.97,178.96,9.54697104]
[1754924185784,3.748191,178.97,178.94,26.0]
[1754924185984,3.748191,178.96,178.94,26.0]
[1754924186162,3.748191,178.95,178.94,26.0]
[1754924186363,3.748191,178.96,178.94,26.0]
[1754924186579,3.748191,178.95,178.94,26.0]
[1754924186880,13.29516204,178.96,178.93,0.06]
[1754924187068,4.408191,178.95,178.93,0.06]
[1754924187270,3.748191,178.94,178.93,0.06]
[1754924189561,10.38417614,178.94,178.93,0.06]
[1754924189760,4.418191,178.94,178.93,0.06]
[1754924190160,10.0066564,178.94,178.93,0.06]
[1754924190562,15.97264154,178.94,178.93,0.06]
[1754924190871,3.748191,178.94,178.93,0.06]
[1754924191670,3.748191,178.96,178.93,6.02598514]
[1754924191860,0.67,178.97,178.93,6.02598514]
[1754924191861,3.748191,178.95,178.93,6.02598514]
[1754924192064,3.748191,178.94,178.93,0.06]
[1754924192265,3.748191,178.96,178.93,0.06]
[1754924192481,3.748191,178.95,178.93,0.06]
[1754924192687,3.748191,178.94,178.93,0.06]
[1754924192894,3.748191,178.96,178.93,0.06]
[1754924193192,3.748191,178.95,178.93,0.06]
[1754924193394,3.748191,178.94,178.93,0.06]
[1754924193886,4.418191,178.94,178.93,0.06]
[1754924194791,3.748191,178.94,178.93,0.06]
[1754924195369,3.748191,178.95,178.93,0.06]
[1754924195570,3.748191,178.94,178.93,0.06]
[1754924195770,3.748191,178.96,178.93,6.02598514]
[1754924196074,3.748191,178.95,178.93,6.02598514]
[1754924196279,3.748191,178.94,178.93,6.02598514]
[1754924197198,3.748191,178.94,178.93,0.06]
[1754924198392,3.748191,178.94,178.93,6.02598514]
[1754924198695,3.748191,178.97,178.93,6.72598514]
[1754924198895,3.75418815,178.96,178.95,5.96598514]
[1754924199194,3.75418815,178.96,178.94,40.56]
[1754924199381,3.754415,178.95,178.94,40.56]
[1754924199584,3.754415,178.95,178.94,46.52598514]
[1754924200769,3.754415,178.95,178.94,40.56]
[1754924200970,3.754415,178.95,178.94,46.52598514]
[1754924201184,3.754415,178.95,178.94,40.56]
[1754924201786,3.754415,178.95,178.94,26.0]
[1754924201977,4.424415,178.95,178.93,0.06]
[1754924202183,3.754415,178.94,178.93,6.02598514]
[1754924202789,3.754415,178.94,178.93,0.06]
[1754924202989,3.754415,178.94,178.93,6.02598514]
[1754924203496,3.754415,178.94,178.93,0.06]
[1754924203702,4.424415,178.94,178.93,0.06]
[1754924203899,10.0128804,178.94,178.93,0.06]
[1754924204496,4.424415,178.94,178.93,0.06]
[1754924205002,3.754415,178.94,178.93,0.06]
[1754924205412,3.754415,178.94,178.93,6.72598514]
[1754924205631,3.754415,178.94,178.93,0.76]
[1754924205779,3.754415,178.94,178.93,12.31476287]
[1754924205973,3.754415,178.94,178.93,52.85476287]
[1754924207193,0.03,178.96,178.95,26.0]
[1754924207396,0.03,178.96,178.95,31.96598514]
[1754924207599,0.03,178.98,178.97,5.96598514]
[1754924207797,0.03,178.98,178.97,46.50598514]
[1754924207987,0.03,179.0,178.97,46.50598514]
[1754924207988,0.03,179.0,178.97,53.73072314]
[1754924208221,0.03,179.0,178.99,31.96598514]
[1754924208717,0.03,179.0,178.99,32.66598514]
[1754924209312,0.03,179.0,178.99,72.48598514]
[1754924210313,0.03,179.0,178.99,76.05629995]
[1754924211110,0.7,179.0,178.99,66.52]
[1754924211291,0.7,179.0,178.95,0.7]
[1754924211490,0.67,178.99,178.96,50.05629995]
[1754924211807,0.67,178.98,178.96,50.05629995]
[1754924212106,0.7,179.0,178.97,9.53629995]
[1754924212307,0.67,178.99,178.97,9.53629995]
[1754924213296,15.15295978,179.0,178.96,50.05629995]
[1754924213488,140.0,178.97,178.96,50.03629995]
[1754924213805,140.67,178.97,178.93,0.06]
[1754924214010,9.53629995,178.94,178.93,0.06]
[1754924214306,9.53629995,178.95,178.93,0.06]
[1754924214479,10.20629995,178.94,178.93,0.06]
[1754924214890,0.67,178.94,178.93,0.06]
[1754924215688,15.12448641,178.95,178.93,0.06]
[1754924215890,0.67,178.94,178.93,0.06]
[1754924216205,6.2584654,178.94,178.93,0.06]
[1754924216396,0.67,178.94,178.93,0.06]
[1754924216597,5.58823468,178.95,178.93,0.06]
[1754924216779,15.12453463,178.95,178.93,0.06]
[1754924217093,5.58823468,178.95,178.93,0.06]
[1754924217293,0.67,178.95,178.93,0.06]
[1754924218708,6.25817403,178.95,178.93,0.06]
[1754924218906,0.7,178.94,178.93,0.06]
[1754924219814,10.23629995,178.94,178.93,0.06]
[1754924220909,15.82476535,178.94,178.93,0.06]
[1754924222689,15.12476535,178.94,178.93,0.06]
[1754924222885,10.23629995,178.94,178.93,0.06]
[1754924223301,25.34251552,178.94,178.93,0.06]
[1754924224117,29.991347,178.94,178.93,0.06]
[1754924224297,20.45504705,178.94,178.93,0.06]
[1754924224494,29.991347,178.94,178.93,0.06]
[1754924224692,25.34251552,178.94,178.93,0.06]
[1754924224901,30.93098092,178.94,178.93,0.06]
[1754924225718,36.2884654,178.94,178.93,0.06]
[1754924225899,45.82476535,178.94,178.93,0.06]
[1754924226205,35.5884654,178.94,178.93,0.06]
[1754924226412,5.5884654,178.94,178.93,0.06]
[1754924226796,5.34883148,178.96,178.93,0.06]
[1754924226999,15.12437213,178.96,178.93,0.06]
[1754924227202,0.7,178.94,178.93,0.06]
[1754924227389,19.77320361,178.96,178.93,0.06]
[1754924227595,0.7,178.95,178.93,0.06]
[1754924227990,0.7,178.94,178.93,0.06]
[1754924228803,15.12437213,178.96,178.93,0.06]
[1754924229698,10.93642938,178.97,178.93,9.59629995]
[1754924229896,6.2875979,178.97,178.93,10.27629995]
[1754924230097,10.93642938,178.97,178.93,10.27629995]
[1754924230624,10.93642938,178.97,178.93,0.74]
[1754924230625,20.47272933,178.97,178.93,0.74]
[1754924230912,20.47272933,178.97,178.93,0.06]
[1754924231115,10.93642938,178.97,178.93,0.06]
[1754924231417,10.93642938,178.97,178.93,10.27629995]
[1754924231624,6.2875979,178.97,178.93,10.27629995]
[1754924231915,6.2875979,178.97,178.93,0.06]
[1754924231916,0.7,178.96,178.93,0.06]
[1754924232301,0.7,178.95,178.93,0.06]
[1754924232499,6.66599424,178.95,178.93,0.06]
[1754924232807,0.7,178.94,178.93,0.06]
[1754924233408,12.25445964,178.94,178.93,0.06]
[1754924233795,6.2884654,178.94,178.93,0.06]
[1754924234815,5.5884654,178.94,178.93,0.06]
[1754924235014,5.58793185,178.96,178.93,0.06]
[1754924235402,6.28828926,178.95,178.93,0.06]
[1754924235606,6.28791902,178.96,178.93,0.06]
[1754924235804,6.28791902,178.96,178.93,6.02599424]
[1754924236020,6.28791902,178.96,178.93,0.06]
[1754924237322,157.25361572,178.97,178.93,6.70599424]
[1754924237619,151.28762148,178.97,178.93,6.70599424]
[1754924237808,151.28762148,178.97,178.93,0.74]
[1754924238118,151.28762148,178.97,178.93,6.70599424]
[1754924238327,157.95361572,178.97,178.93,6.70599424]
[1754924238534,157.95361572,178.97,178.93,6.02599424]
[1754924238690,157.95361572,178.97,178.93,0.06]
[1754924238897,0.7,178.96,178.93,6.02599424]
[1754924239805,145.7,178.97,178.94,5.96599424]
[1754924240109,0.03,178.98,178.96,5.96599424]
[1754924240310,0.03,178.98,178.97,5.96599424]
[1754924240520,30.03,178.98,178.97,5.96599424]
[1754924240715,30.03,178.98,178.97,6.64599424]
[1754924240898,0.03,178.98,178.97,6.64599424]
[1754924242622,0.03,178.98,178.97,0.68]
[1754924242821,0.03,178.98,178.97,6.64599424]
[1754924243317,0.03,178.98,178.97,6.26752863]
[1754924243494,0.03,178.98,178.97,12.23352287]
[1754924243694,0.03,178.98,178.97,5.96599424]
[1754924244110,0.03,178.98,178.94,32.26835138]
[1754924244399,0.73,178.98,178.97,5.96599424]
[1754924244816,0.03,178.98,178.97,5.96599424]
[1754924245447,0.03,178.98,178.97,6.64599424]
[1754924245939,0.03,178.98,178.97,38.23352287]
[1754924247043,0.03,178.98,178.97,37.55352287]
[1754924247831,0.03,178.98,178.97,38.23352287]
[1754924249232,0.03,178.98,178.95,0.72]
[1754924249450,0.03,178.98,178.96,5.96599424]
[1754924249607,0.75,178.98,178.96,5.96599424]
[1754924250019,140.72,178.97,178.96,5.96599424]
[1754924250220,140.72,178.97,178.95,5.96599424]
[1754924250850,140.72,178.97,178.94,5.96599424]
[1754924251564,140.72,178.97,178.95,5.96599424]
[1754924252226,0.72,178.96,178.93,26.06]
[1754924252426,0.72,178.95,178.93,0.06]
[1754924253131,0.72,178.95,178.93,6.02599424]
[1754924253464,5.58775746,178.97,178.94,5.96599424]
[1754924253621,6.30775746,178.97,178.93,0.06]
[1754924253826,0.72,178.96,178.93,6.02599424]
[1754924254425,6.30785103,178.96,178.93,6.02599424]
[1754924254626,0.72,178.95,178.93,0.06]
[1754924255451,140.0,178.94,178.93,0.06]
[1754924255640,140.0,178.94,178.93,0.78]
[1754924255865,140.0,178.94,178.93,6.74599424]
[1754924256041,140.0,178.94,178.93,0.06]
[1754924256239,140.0,178.94,178.93,6.02599424]
[1754924256653,140.0,178.94,178.93,6.74599424]
[1754924257765,140.0,178.94,178.93,12.33477197]
[1754924258157,140.0,178.94,178.93,6.36877773]
[1754924258348,140.0,178.94,178.93,12.33477197]
[1754924258549,140.0,178.94,178.93,11.61477197]
[1754924258954,140.0,178.94,178.93,40.44]
[1754924259169,140.0,178.94,178.93,46.40599424]
[1754924259354,140.0,178.94,178.93,40.44]
[1754924259571,140.0,178.94,178.93,46.40599424]
[1754924261987,140.0,178.94,178.93,40.44]
[1754924262194,140.72,178.94,178.93,46.40599424]
[1754924262382,140.0,178.94,178.93,46.40599424]
[1754924262769,140.0,178.94,178.93,52.71477197]
[1754924263293,0.03,178.98,178.93,69.49188797]
[1754924263598,0.03,178.98,178.97,5.96599424]
[1754924263893,0.03,178.98,178.97,46.34599424]
[1754924264074,0.03,178.98,178.97,47.06599424]
[1754924264469,0.03,178.98,178.97,49.30256824]
[1754924265506,0.03,178.98,178.97,54.89009687]
[1754924267385,0.03,179.0,178.98,11.93198848]
[1754924267597,0.03,179.0,178.99,52.8506789]
[1754924267910,0.03,179.0,178.99,53.5706789]
[1754924268086,0.03,179.0,178.99,53.01198848]
[1754924268920,0.03,179.0,178.99,58.59889277]
[1754924269216,0.03,179.0,178.99,52.63289853]
[1754924269413,0.03,179.0,178.99,58.59889277]
[1754924271691,0.03,179.0,178.99,75.36944377]
[1754924272095,0.03,179.0,178.99,69.40344953]
[1754924272287,0.03,179.0,178.99,48.73654524]
[1754924272527,0.75,179.0,178.95,0.06]
[1754924272691,0.75,179.0,178.98,5.96599424]
[1754924272884,0.03,179.0,178.99,46.30599424]
[1754924273885,0.03,179.0,178.99,77.89289853]
[1754924274092,0.03,179.0,178.99,78.61289853]
[1754924274288,0.03,179.0,178.99,77.89289853]
[1754924275327,0.03,179.0,178.99,80.12934653]
[1754924276026,0.75,179.0,178.99,74.16335229]
[1754924276327,0.75,179.0,178.99,77.89289853]
[1754924276536,0.75,179.0,178.98,2.236448]
[1754924276720,0.75,179.0,178.99,40.32]
[1754924277026,6.71599424,179.0,178.95,0.06]
[1754924277233,0.72,178.99,178.96,46.28599424]
[1754924277541,0.72,178.99,178.96,40.32]
[1754924278008,12.27291867,178.99,178.96,40.32]
[1754924278207,0.72,178.98,178.96,40.32]
[1754924278510,140.0,178.97,178.96,40.32]
[1754924278710,140.69,178.97,178.96,40.32]
[1754924280528,140.69,178.97,178.96,49.86298407]
[1754924280529,140.0,178.97,178.96,49.86298407]
[1754924282141,0.69,178.99,178.96,49.86298407]
[1754924283432,0.69,178.99,178.98,9.54298407]
[1754924283631,0.03,179.0,178.98,49.86298407]
[1754924283805,0.03,179.0,178.99,9.54298407]
[1754924285434,0.03,179.0,178.99,15.12988836]
[1754924286210,0.03,179.0,178.99,9.54298407]
[1754924287334,0.03,179.0,178.98,45.90716299]
[1754924287541,0.03,179.0,178.99,9.54298407]
[1754924288022,0.03,179.0,178.99,10.24298407]
[1754924289613,0.03,179.0,178.99,15.82988836]
[1754924294750,0.03,179.0,178.99,15.12988836]
[1754924295447,0.72,179.0,178.99,40.26]
[1754924295759,0.72,179.0,178.99,49.80298407]